Cogmind - Beta 14 @@@ ROGUE MODE // 2024.12.27 @ 20:45:30 Player: Tereza Result: Destroyed by as-48947 with Assembled Heavy Rifle Performance ------------- Evolutions (2) 1000 Regions Visited (6) 1200 Robots Destroyed (57) 285 Value Destroyed (1888) 1888 Prototype IDs (24) 480 Alien Tech Used (0) 0 Bonus (500) 500 TOTAL SCORE: 5353 Bonus ------- Entered Garrisons 200 Aligned with FarCom 300 Cogmind --------- Core Integrity 0/550 Matter 128/300 Energy 56/100 System Corruption 0% Temperature Cool (0) Movement Core (750) Ox14 Location -8/Garrison Parts ------- > --- POWER (1) -------- (None) > --- PROPULSION (3) --- (None) > --- UTILITY (5) ------ High-capacity Storage Unit Improved Signal Interpreter Targeting Computer > --- WEAPON (2) ------- KE Penetrator > --- INVENTORY (20) --- Micro Fission Core Light Treads Light Treads Light Treads High-capacity Matter Pod (0) Sensor Array Improved Sensor Array Recoil Nullifier Hardlight Generator Advanced Shield Generator Hacking Suite Long-range Proton Cannon Long-range Proton Cannon Heavy Phase Cannon Guided Plasma Cannon Enhanced Autogun Flak Cannon Mini Grenade Launcher Plasma Cutter Peak State ------------ > --- POWER ------------ Light Nuclear Core > --- PROPULSION ------- Light Treads Improved Treads > --- UTILITY ---------- Advanced Cooling System High-capacity Storage Unit Improved Signal Interpreter Targeting Computer Hardlight Generator > --- WEAPON ----------- Variable Charge Gun Enhanced Autogun > --- INVENTORY -------- Micro Fission Core Light Treads Light Treads Light Treads High-capacity Matter Pod Sensor Array Improved Sensor Array Recoil Nullifier Hardlight Generator Advanced Shield Generator Hacking Suite Long-range Proton Cannon Heavy Phase Cannon Guided Plasma Cannon Enhanced Autogun KE Penetrator Flak Cannon Mini Grenade Launcher Mini Grenade Launcher Plasma Cutter [Rating: 37] Favorites ----------- Power Ion Engine Engine Ion Engine Power Core Light Nuclear Core Propulsion Light Treads Treads Light Treads Utility Targeting Computer Device Hardlight Generator Storage Large Storage Unit Processor Targeting Computer Protection Hardened Medium Armor Plating Weapon Light Assault Rifle Energy Gun Small Laser Energy Cannon Guided Plasma Cannon Ballistic Gun Light Assault Rifle Ballistic Cannon Flak Cannon Launcher Mini Grenade Launcher Build | -11 -10 -10 -10 -9 -8 -8 ------- Run | Yrd Mat Min Exi Min Mat Gar Slots Evolved 4 | . . . . . 4 . Power . | . . . . . . . Propulsion 1 | . . . . . 1 . Utility 3 | . . . . . 3 . Weapon . | . . . . . . . Parts Attached 46 | 6 13 1 . 2 11 13 Power 6 | 1 3 . . . 1 1 Engine 2 | 1 1 . . . . . Core 4 | . 2 . . . 1 1 Reactor . | . . . . . . . Propulsion 12 | 2 4 . . 1 3 2 Treads 12 | 2 4 . . 1 3 2 Leg . | . . . . . . . Wheel . | . . . . . . . Hover . | . . . . . . . Flight . | . . . . . . . Utility 9 | 1 2 . . . 4 2 Device 3 | . . . . . 1 2 Storage 3 | 1 1 . . . 1 . Processor 2 | . 1 . . . 1 . Hackware . | . . . . . . . Protection 1 | . . . . . 1 . Artifact . | . . . . . . . Weapon 19 | 2 4 1 . 1 3 8 Energy Gun 5 | 2 2 . . . . 1 Energy Cannon 1 | . . . . . . 1 Ballistic Gun 9 | . 2 1 . 1 2 3 Ballistic Cannon 1 | . . . . . 1 . Launcher 3 | . . . . . . 3 Special Weapon . | . . . . . . . Impact Weapon . | . . . . . . . Slashing Weapon . | . . . . . . . Piercing Weapon . | . . . . . . . Special Melee Weapon . | . . . . . . . Unidentified Prototypes 1 | . . . . . 1 . Parts Lost 19 | . 2 . . . 5 12 Power 4 | . 1 . . . 1 2 Propulsion 7 | . . . . . 2 5 Utility 3 | . . . . . . 3 Weapon 5 | . 1 . . . 2 2 Highest Loss Streak 7 | . 1 . . . 3 7 To Critical Strikes . | . . . . . . . Average Slot Usage (%) 91 | . 94 100 100 100 75 86 Engine 6 | . 7 14 14 14 1 . Core 3 | . 5 . . . 2 6 Treads 26 | . 27 28 28 28 25 19 Device 1 | . . . . . . 11 Storage 12 | . 14 14 14 14 9 9 Processor 12 | . 9 14 14 14 13 18 Protection 1 | . . . . . 5 3 Energy Gun 8 | . 15 12 . . . 2 Ballistic Gun 13 | . 11 15 28 28 12 6 Ballistic Cannon 1 | . . . . . 5 6 Peak Build Rating 37 | 6 11 10 10 10 32 37 Average Rating 14 | 4 9 9 9 10 20 30 On Entrance 11 | . 6 10 9 10 10 32 Naked Turns . | . . . . . . . Heaviest Build 74 | 13 29 29 27 27 67 74 Greatest Support 69 | 40 40 40 40 40 69 69 Greatest Overweight (x) 1 | 1 1 . . . 1 1 Average Overweight (x) . | . . . . . . . Largest Inventory Capacity 20 | 8 15 15 15 15 20 20 Average Capacity 16 | 7 14 15 15 15 19 20 Most Carried 20 | 6 15 15 15 15 20 20 Average Carried 15 | 3 14 14 14 14 17 19 Final Capacity 20 | 8 15 15 15 15 20 20 Final Carried 20 | 4 15 15 15 15 20 19 Class Distribution -------------------- 100% | Mutant Dominant Class ---------------- Mutant | -10/Materials Mutant | -10/Mines Mutant | -10/Exiles Mutant | -9/Mines Mutant | -8/Materials Mutant | -8/Garrison Resources | -11 -10 -10 -10 -9 -8 -8 ----------- Run | Yrd Mat Min Exi Min Mat Gar Matter Collected 1194 | 253 184 17 . 33 313 394 Remotely . | . . . . . . . Salvage Created 2078 | . 847 138 . 63 709 321 Parts 109 | . 52 8 . 7 25 17 Haulers Intercepted 3 | . 2 . . . 1 . Recyclers Shooed 1 | . 1 . . . . . Parts Field Recycled . | . . . . . . . Retrieved Matter . | . . . . . . . Parts Self-Destructed . | . . . . . . . Prevented . | . . . . . . . Kills | -11 -10 -10 -10 -9 -8 -8 ------- Run | Yrd Mat Min Exi Min Mat Gar Combat Hostiles Destroyed 66 | . 20 5 . 4 12 25 Guns 37 | . 20 3 . 4 8 2 Cannons 6 | . . . . . 4 2 AOE 23 | . . 2 . . . 21 Classes Destroyed 9 | . 3 . . . 3 3 Hauler 3 | . 2 . . . 1 . Recycler 2 | . . . . . 2 . Watcher 1 | . . . . . 1 . Swarmer 10 | . 3 3 . 4 . . Grunt 34 | . 17 2 . . 10 5 Brawler 1 | . . . . . . 1 Sentry 2 | . . . . . 2 . Hunter 4 | . . . . . . 4 Assembled 15 | . . . . . . 15 Best Kill Streak 15 | . 6 3 . 4 7 15 Combat Bots Only 15 | . 6 3 . 4 3 15 Max Kills in Single Turn 5 | . 1 2 . 1 1 5 Gunslinging . | . . . . . . . Exploded 5 | . . 2 . . . 5 Melee . | . . . . . . . Uniques/NPCs Destroyed . | . . . . . . . Combat | -11 -10 -10 -10 -9 -8 -8 -------- Run | Yrd Mat Min Exi Min Mat Gar Hostile Shots Fired 321 | . 70 17 . 26 95 113 Missed 82 | . 13 3 . 13 18 35 Damage Taken 3590 | . 654 182 . 97 1274 1383 Core 758 | . 128 38 . 34 319 239 Absorbed by Shields 112 | . . . . . 20 92 Core Remaining (%) 60 | 100 . . . 20 . . Volleys Fired 209 | . 74 11 . 11 76 37 Largest 2 | . 2 2 . 2 2 2 Hottest 120 | . 90 65 . 40 69 120 Shots Fired 392 | . 145 22 . 22 145 58 Gun 328 | . 145 22 . 22 112 27 Cannon 51 | . . . . . 33 18 Launcher 13 | . . . . . . 13 Special . | . . . . . . . Kinetic 270 | . 57 11 . 22 145 35 Thermal 86 | . 76 . . . . 10 Explosive 13 | . . . . . . 13 Electromagnetic 23 | . 12 11 . . . . Robot Hit Streak 20 | . 18 6 . 5 20 10 Robot Miss Streak 7 | . 7 2 . 2 6 6 Penetration Max . | . . . . . . . Secondary Targets 3 | . 2 . . 1 . . Max Gunslinging Chain 1 | . 1 . . 1 . . Shots Hit Robots 282 | . 100 15 . 13 116 38 Core Hits 169 | . 45 7 . 5 61 51 Critical Kills 1 | . . . . . 1 . Critical Parts Destroyed 2 | . . . . . 2 . Critical Strikes 5 | . 1 1 . . 3 . Burn 1 | . 1 . . . . . Destroy 3 | . . . . . 3 . Corrupt 1 | . . 1 . . . . Melee Attacks . | . . . . . . . Impact . | . . . . . . . Slashing . | . . . . . . . Piercing . | . . . . . . . Sneak Attacks . | . . . . . . . Combat Hostiles . | . . . . . . . Follow-up Attacks . | . . . . . . . Damage Inflicted 5264 | . 1075 277 . 106 1482 2324 Guns 2449 | . 1075 160 . 106 920 188 Cannons 884 | . . . . . 562 322 Explosions 1931 | . . 117 . . . 1814 Melee . | . . . . . . . Ramming . | . . . . . . . Kinetic 2375 | . 287 64 . 106 1482 436 Thermal 818 | . 627 117 . . . 74 Explosive 1814 | . . . . . . 1814 Electromagnetic 257 | . 161 96 . . . . Impact . | . . . . . . . Slashing . | . . . . . . . Piercing . | . . . . . . . Highest Corruption . | . . . . . . . Average Corruption . | . . . . . . . Corruption Purged . | . . . . . . . Corruption Blocked . | . . . . . . . Overload Shots . | . . . . . . . Overflow Damage 153 | . . 28 . . . 125 Projectiles . | . . . . . . . Explosions 153 | . . 28 . . . 125 Melee . | . . . . . . . Knockbacks 20 | . . . . . 12 8 Impact . | . . . . . . . Kinetic 20 | . . . . . 12 8 Secondary . | . . . . . . . Self-Inflicted Damage 290 | . . 40 . . . 250 Shots 9 | . . 1 . . . 8 Rammed . | . . . . . . . Targets Rammed . | . . . . . . . Kicked . | . . . . . . . Crushed . | . . . . . . . Highest Temperature 370 | . 370 76 . . 197 264 Average Temperature 66 | . 69 38 . . 50 104 Received Heat Transfer 1251 | . 273 63 . . 712 203 Siege Activations . | . . . . . . . Robots Corrupted . | . . . . . . . Combat Hostiles . | . . . . . . . Parts Fried . | . . . . . . . Impact Corruptions . | . . . . . . . Robots Melted . | . . . . . . . Combat Hostiles . | . . . . . . . Parts Melted 2 | . 1 . . . 1 . Heat Transferred 1785 | . 1531 100 . . . 154 Parts Sabotaged . | . . . . . . . Parts Stolen . | . . . . . . . Parts Stripped . | . . . . . . . Power Chain Reactions 2 | . . 2 . . . . Alert | -11 -10 -10 -10 -9 -8 -8 ------- Run | Yrd Mat Min Exi Min Mat Gar Peak Influence 474 | . 227 125 . 120 222 474 Initial 56 | . . 53 . . 46 56 Average 120 | . 104 62 . 44 114 283 Maximum Alert Level 2 | . 1 . . . 1 2 Low Security (%) 81 | 100 85 100 . 100 82 37 Level 1 16 | . 14 . . . 17 47 Level 2 2 | . . . . . . 15 Level 3 . | . . . . . . . Level 4 . | . . . . . . . Level 5 . | . . . . . . . High Security . | . . . . . . . Max Security . | . . . . . . . Squads Dispatched 5 | . 5 . . . . . Investigation 4 | . 4 . . . . . Extermination . | . . . . . . . Reinforcement 1 | . 1 . . . . . Assault . | . . . . . . . Garrison . | . . . . . . . Intercept . | . . . . . . . Searches Triggered . | . . . . . . . Construction Impeded . | . . . . . . . Haulers Reinforced . | . . . . . . . Active Scanning Responses . | . . . . . . . Cargo Convoy Interrupts . | . . . . . . . Stealth | -11 -10 -10 -10 -9 -8 -8 --------- Run | Yrd Mat Min Exi Min Mat Gar Distress Signals 6 | . 4 . . . 1 1 Communications Jammed . | . . . . . . . Distress Signals . | . . . . . . . Times Spotted 98 | . 37 6 . 5 18 32 Peak Tracking Total 21 | . 5 3 . 4 4 21 Tactical Retreats 1 | . . . . 1 . . Traps | -11 -10 -10 -10 -9 -8 -8 ------- Run | Yrd Mat Min Exi Min Mat Gar Traps Triggered 5 | . 5 . . . . . Indirectly . | . . . . . . . Trap Hack Attempts . | . . . . . . . Triggered . | . . . . . . . Disarmed . | . . . . . . . Reprogrammed 1 | . 1 . . . . . Reused . | . . . . . . . Traps Extracted . | . . . . . . . Installed . | . . . . . . . Triggered . | . . . . . . . Machines | -11 -10 -10 -10 -9 -8 -8 ---------- Run | Yrd Mat Min Exi Min Mat Gar Machines Disabled 1 | . . 1 . . . . Max in Single Turn 1 | . . 1 . . . . Machines Repaired . | . . . . . . . Machines Dismantled . | . . . . . . . Machines Sabotaged . | . . . . . . . Overloaded Fab Kills . | . . . . . . . Hacking | -11 -10 -10 -10 -9 -8 -8 --------- Run | Yrd Mat Min Exi Min Mat Gar Machines Accessed 13 | . 6 . 2 . 3 2 Terminals 10 | . 6 . . . 2 2 Fabricators . | . . . . . . . Repair Stations . | . . . . . . . Recycling Units . | . . . . . . . Scanalyzers . | . . . . . . . Garrison Access 1 | . . . . . 1 . Total Hacks 25 | . 14 . 3 . 5 3 Successful 10 | . 3 . 3 . 3 1 Failed 14 | . 10 . . . 2 2 Catastrophic 1 | . . . . . . 1 Database Lockouts 1 | . 1 . . . . . Manual 8 | . 5 . 1 . 2 . Terminals 20 | . 14 . . . 3 3 Fabricators . | . . . . . . . Repair Stations . | . . . . . . . Recycling Units . | . . . . . . . Scanalyzers . | . . . . . . . Garrison Access 2 | . . . . . 2 . Terminal Hacks 9 | . 3 . 3 . 2 1 Record 2 | . . . 2 . . . Robot Analysis 2 | . 1 . . . 1 . Emergency Access Points 1 | . . . . . . 1 Alert Level 1 | . . . . . 1 . Reprogram Traps 1 | . 1 . . . . . Hauler Manifests 1 | . 1 . . . . . Derelict Proto ID Bank 1 | . . . 1 . . . Fabricator Hacks . | . . . . . . . Repair Station Hacks . | . . . . . . . Recycling Unit Hacks . | . . . . . . . Scanalyzer . | . . . . . . . Garrison Access Hacks 1 | . . . . . 1 . Unlock Access 1 | . . . . . 1 . Unauthorized Hacks . | . . . . . . . Terminals . | . . . . . . . Fabricators . | . . . . . . . Repair Stations . | . . . . . . . Recycling Units . | . . . . . . . Scanalyzers . | . . . . . . . Garrison Access . | . . . . . . . Data Cores Recovered . | . . . . . . . Used . | . . . . . . . Hacking Detections 7 | . 4 . . . 1 2 Full Trace Events 3 | . 2 . . . . 1 Feedback Events . | . . . . . . . Feedback Blocked . | . . . . . . . Robot Schematics Acquired . | . . . . . . . Robots Built . | . . . . . . . Authchips . | . . . . . . . Time . | . . . . . . . Total Robot Build Rating . | . . . . . . . Part Schematics Acquired . | . . . . . . . Parts Built . | . . . . . . . Authchips . | . . . . . . . Time . | . . . . . . . Total Part Build Rating . | . . . . . . . Parts Repaired . | . . . . . . . Time . | . . . . . . . Parts Recycled . | . . . . . . . Recycled Matter . | . . . . . . . Retrieved Matter . | . . . . . . . Retrieved Components . | . . . . . . . Parts Scanalyzed . | . . . . . . . Part Schematics Acquired . | . . . . . . . Parts Damaged . | . . . . . . . Bothacking | -11 -10 -10 -10 -9 -8 -8 ------------ Run | Yrd Mat Min Exi Min Mat Gar Used RIF Installer . | . . . . . . . Robots Hacked . | . . . . . . . Non-combat . | . . . . . . . Combat . | . . . . . . . Robot Hacks Applied . | . . . . . . . Relay Couplers Released . | . . . . . . . Fabnet Peak Effective % . | . . . . . . . Robots Rewired . | . . . . . . . Allies Hacked . | . . . . . . . Hacks Repelled . | . . . . . . . Allies | -11 -10 -10 -10 -9 -8 -8 -------- Run | Yrd Mat Min Exi Min Mat Gar Total Allies . | . . . . . . . Largest Group . | . . . . . . . Highest-Rated Group . | . . . . . . . Highest-Rated Ally . | . . . . . . . Total Orders . | . . . . . . . Ally Attacks . | . . . . . . . Total Damage . | . . . . . . . Kills . | . . . . . . . Allies Corrupted . | . . . . . . . Allies Melted . | . . . . . . . Intel | -11 -10 -10 -10 -9 -8 -8 ------- Run | Yrd Mat Min Exi Min Mat Gar Robot Analysis Total 2 | . 1 . . . 1 . Derelict Logs Recovered 2 | . . 2 . . . . Drone Launches . | . . . . . . . Drone Recoveries . | . . . . . . . Exploration | -11 -10 -10 -10 -9 -8 -8 ------------- Run | Yrd Mat Min Exi Min Mat Gar Turns Passed 4084 | 77 1447 656 344 168 841 551 Spaces Moved 2001 | 43 728 383 215 79 358 195 Core 5 | 5 . . . . . . Treads 1996 | 38 728 383 215 79 358 195 Legs . | . . . . . . . Wheels . | . . . . . . . Hover . | . . . . . . . Flight . | . . . . . . . Fastest Speed 50 | 50 160 160 160 160 160 160 Average Speed 165 | 148 160 160 160 160 160 222 Slowest Speed 240 | 160 240 160 160 160 240 240 Overloaded Moves . | . . . . . . . Propulsion Burnouts . | . . . . . . . Robots Hopped . | . . . . . . . Cave-ins Triggered . | . . . . . . . Exploration Rate (%) 45 | 4 96 79 59 30 35 18 Regions Visited 6 Branch Regions 3 Pre-discovered Areas 1 | . . . 1 . . . Known Exits Taken 1 | . . . . . 1 . Unknown Exits Taken 5 | 1 1 1 1 1 . . Scrap Searched 2 | . . 1 . 1 . . Spaces Dug . | . . . . . . . Terrain Destroyed 56 | . . 14 . . . 42 Melee . | . . . . . . . Projectile . | . . . . . . . AOE 56 | . . 14 . . . 42 Terrain Rammed . | . . . . . . . Walls Destroyed . | . . . . . . . Machines Disabled . | . . . . . . . Actions | -11 -10 -10 -10 -9 -8 -8 --------- Run | Yrd Mat Min Exi Min Mat Gar Total 2433 | 54 877 408 216 105 509 264 Wait 93 | . 33 7 . 10 43 . Move 1996 | 42 727 382 214 78 358 195 Hop . | . . . . . . . Pick Up 53 | 6 18 3 1 1 14 10 Fast Attach 20 | 4 7 1 . . 6 2 Attach 13 | 2 2 . . . 5 4 Detach 3 | . 2 . . . 1 . Swap 13 | . 4 . . 2 . 7 Drop 33 | . 10 4 1 3 6 9 Fire 209 | . 74 11 . 11 76 37 Melee . | . . . . . . . Ram . | . . . . . . . Kick . | . . . . . . . Crush . | . . . . . . . Escape Stasis . | . . . . . . . Rewire . | . . . . . . . Trap . | . . . . . . . Miscellaneous . | . . . . . . . Route ------- -11/Scrapyard -10/Materials (discovered 4 exits: [*Mat x3] / [*Min]) -10/Mines (discovered 2 exits: [*Mat] / *Exi) -10/Exiles -9/Mines -8/Materials (discovered 4 exits: *Fac x2 / Sto / Gar) -8/Garrison History --------- Turn | Location | Event 7 | -11/Scrapyard | Discovered new exit (range 16) 78 | -11/Scrapyard | Entered Materials 176 | -10/Materials | Discovered new exit (range 6) 314 | -10/Materials | Build established: Mutant 502 | -10/Materials | Discovered new exit (range 10) 526 | -10/Materials | Central database locked down 717 | -10/Materials | Discovered new exit (range 8) 1139 | -10/Materials | Discovered new exit (range 5) 1443 | -10/Materials | Core integrity fell below 50% 1525 | -10/Materials | Entered Mines 1531 | -10/Mines | Met a Derelict bent on vengeance 1541 | -10/Mines | Learned 8 Materials zone layouts 1551 | -10/Mines | Joined a pair of Derelicts in attacking an 0b10 outpost 2100 | -10/Mines | Discovered new exit (range 5) 2173 | -10/Mines | Deemed a non-threat by the Exiles lab entrance 2175 | -10/Mines | Discovered new exit (range 5) 2181 | -10/Mines | Entered Exiles 2220 | -10/Exiles | Met 8R-AWN 2249 | -10/Exiles | Met EX-HEX 2293 | -10/Exiles | Met EX-BIN 2311 | -10/Exiles | Aligned with FarCom system 2313 | -10/Exiles | Given EX-Vault access code 2349 | -10/Exiles | Opened EX-Vault 2363 | -10/Exiles | Found Gui. Plasma Cannon 2394 | -10/Exiles | Warned to stay clear of 0b10 Research branches 2455 | -10/Exiles | Learned location of Zion (-7) 2505 | -10/Exiles | Discovered new exit (range 15) 2525 | -10/Exiles | Left Exiles lab with Gui. Plasma Cannon 2525 | -10/Exiles | Entered Mines 2676 | -9/Mines | Discovered new exit (range 14) 2693 | -9/Mines | Entered Materials 2693 | -8/Materials | Evolved 4 slots: Propulsion x1, Utility x3 2694 | -8/Materials | Identified exit to Storage 2695 | -8/Materials | Identified exit to Factory 2830 | -8/Materials | Lost 3 parts (1p1n1w) 3316 | -8/Materials | Core integrity fell below 50% 3534 | -8/Materials | Identified exit to Garrison 3534 | -8/Materials | Entered Garrison 3776 | -8/Garrison | Lost 3 parts (1p1n1u) 3955 | -8/Garrison | Assembled breached garrison interior 4071 | -8/Garrison | Core integrity fell below 20% 4085 | -8/Garrison | Destroyed by as-48947 with Assembled Heavy Rifle Last Messages --------------- 04074_ Field strength at 2. 04075_ Stasis field depleted. 04076_ Lgt. Nuclear Core destroyed. 04076_ Destroyed Asb. Heavy Rifle. 04076_ as-92291 destroyed. 04076_ Destroyed Asb. F-torch. 04076_ Destroyed Asb. Hover Unit. 04076_ as-31173 destroyed. 04076_ as-06932 destroyed. 04076_ Destroyed Asb. F-torch. 04076_ Destroyed Asb. Hover Unit. 04076_ as-12869 destroyed. 04076_ as-09257 destroyed. 04078_ Imp. Treads destroyed. 04079_ Variable Charge Gun destroyed. 04079_ Destroyed Variable Charge Gun. 04081_ Lgt. Treads destroyed. 04081_ Mni. Grenade Launcher destroyed. 04083_ Adv. Cooling System destroyed. 04083_ Slug penetrates Reinforced Barrier. Map ----- +----------------------------------------------------+ | ????????????????????????????????????????????#""#?? | | ????????????????????????????????????????????# T#?? | | ????????????????????+???????????????????????# "#?? | | ????????????????????+???????????????????????# ##?? | | ????????????????????+???????????????????????# #### | | ?#??#??????????+????+???????????????????????# ## | | ????????????????????+??????????????????###### ## | | ????????????????????+??????????????????# | | ???????????????????????????????????????# | | ???????????????????????????????????????# ######## | | #???????????+?????++???????????????????# #??????? | | ???????????????????????????????????????# #??????? | | ???????????????????????????????????????# #??????? | | ???????????????????????????????????????# #??????? | | ????##?????????????????????????????????# #??????? | | ???????????????????????????????????????# #??????? | | ???????????????????????????????????????# ######## | | ?????????????????+?????????????????????# *##"""""# | | ???????????????????????????????###?????#! #?# ## | | ???????????????+????????????####T####### [### ## | | ????????????????????????##### [ | | ????????????????????????# " | | ??????????????????????### ### ###+##### ### # | | ??????????????????????# # ## #???????# #?# " | | ??????????????????????# # #???????# #?###### | | ?????????#????????????# @ # +???????# #??????? | | ??????????????????????###a### #???????+ #??????? | | ??????#????????????????? ?# #???????# #??????? | | ???????????????????????? ?# #?Y?????# #??????? | | ??????????????????????? ??+????# #??????? | | ??????????????????????? a ??????? #??????? | | ?????????????????????? % ??????? #??????? | | ????????????+????????? # ???????#+##??????? | | ????????????????????? # ?????????????????? | | ???????????????+????? *%????????????????? | | ???????????????????? a %%=%?/??????????????? | | ???????????????????? a =%?????????????????? | | ??????????????????? ???????????????????? | | ??????????????????? ## ## ???????????????????? | | ????????+?????????????# ?? ???????????????????? | | ??????????????????????? a??????????????????????? | | ?????????????????????????????????????????????????? | | ?????????????????????????????????????????????????? | | ???????????????????+????????????+????????????????? | | ?????????????????????????????????????????????????? | | ??????????????????????????+??????????????????????? | | ?????????????????????????????????????????????????? | | ??????????+??????????????????????????????????????? | | ?????????????????????????????????????????????????? | | ?????????????????????????????????????++??????????? | +----------------------------------------------------+ Best States ------------- Heat Dissipation 62 Energy Generation 14 Energy Capacity 250 Matter Stores 300 Matter Capacity 300 Sight Range 16 Terrain Scan Density 10 Armor Coverage 225 Evasion (%) 40 Targeting Accuracy 5 Recoil Reduction 3 Item Schematics ----------------- None Robot Schematics ------------------ None Fabricated ------------ Nothing Alien Tech Used ----------------- None Achievements -------------- None Challenges ------------ None Game ------ Seed MicrowarpExoskeletonArchive Manual? 0 Play Time 00:23:05 Cumulative 146.6 hours Start 2024.12.27 @ 20:24:05 End 2024.12.27 @ 20:45:30 Sessions 1 Manual Loads 0 Difficulty Rogue Special Mode None Game No. 180 Rogue 180 Adventurer 0 Explorer 0 Win Type - Total 3 Types 3/0/0/0/0/0/0/0/0 Lore% 67 Gallery% 58 Achievement% 50 Wizard Run 0 Options --------- Layout 1 ASCII 0 Keyboard 1 Movement Numpad Keybinds 0 Fullscreen 1 Font 24/Smallcaps Map View 50x35 Zoom Use 0% Tactical HUD 1 Map Filters NONE Filters NONE Steam 1 RUN: 8f26dfd1-36ff-419a-ac3f-9cf71364b14a